Cogmind - Beta 12 @@@ ROGUE MODE // 2024.02.03 @ 23:32:45 Player: SURFACESEEKER Result: Destroyed by D-53 Grenadier with Mini Grenade Launcher Performance ------------- Evolutions (0) 0 Regions Visited (2) 400 Robots Destroyed (20) 100 Value Destroyed (449) 449 Prototype IDs (0) 0 Alien Tech Used (0) 0 Bonus (16) 16 TOTAL SCORE: 965 Bonus ------- High Alert Combat Kills 16 Cogmind --------- Core Integrity 0/250 Matter 295/300 Energy 125/125 System Corruption 0% Temperature Cool (0) Movement Rolling (95) Ox1 Location -10/Mines Parts ------- > --- POWER (1) -------- Light Ion Engine > --- PROPULSION (2) --- Wheel > --- UTILITY (2) ------ Medium Storage Unit Improved Terrain Scanner > --- WEAPON (2) ------- Small Laser Hammer > --- INVENTORY (10) --- Light Ion Engine Compact Wheel Large Storage Unit Large Storage Unit Improved Terrain Scanner Small Laser Grenade Launcher Mining Laser Peak State ------------ > --- POWER ------------ Ion Engine > --- PROPULSION ------- Wheel Wheel > --- UTILITY ---------- Medium Storage Unit Improved Terrain Scanner > --- WEAPON ----------- EM Pulse Gun Grenade Launcher > --- INVENTORY -------- Light Ion Engine Light Ion Engine Wheel Compact Wheel Huge Storage Unit Improved Terrain Scanner Mining Laser Hammer [Rating: 10] Favorites ----------- Power Ion Engine Engine Ion Engine Propulsion Wheel Treads Light Treads Wheel Wheel Utility Improved Terrain Scanner Device Improved Terrain Scanner Storage Medium Storage Unit Weapon Hammer Energy Gun EM Pulse Gun Ballistic Gun Light Assault Rifle Launcher Grenade Launcher Impact Weapon Hammer Build | -11 -10 -10 ------- Run | Jun Mat Min Slots Evolved . | . . . Power . | . . . Propulsion . | . . . Utility . | . . . Weapon . | . . . Parts Attached 20 | 11 9 . Power 2 | 1 1 . Engine 2 | 1 1 . Core . | . . . Reactor . | . . . Propulsion 7 | 6 1 . Treads 2 | 2 . . Leg . | . . . Wheel 5 | 4 1 . Hover . | . . . Flight . | . . . Utility 4 | 2 2 . Device 2 | 2 . . Storage 2 | . 2 . Processor . | . . . Hackware . | . . . Protection . | . . . Artifact . | . . . Weapon 7 | 2 5 . Energy Gun 3 | . 3 . Energy Cannon . | . . . Ballistic Gun 2 | 2 . . Ballistic Cannon . | . . . Launcher 1 | . 1 . Special Weapon . | . . . Impact Weapon 1 | . 1 . Slashing Weapon . | . . . Piercing Weapon . | . . . Special Melee Weapon . | . . . Unidentified Prototypes . | . . . Parts Lost 5 | . 4 1 Power 1 | . 1 . Propulsion 2 | . 1 1 Utility 1 | . 1 . Weapon 1 | . 1 . Highest Loss Streak 2 | . 2 1 To Critical Strikes . | . . . Average Slot Usage (%) 96 | . 96 100 Engine 13 | . 13 14 Wheel 27 | . 27 28 Device 15 | . 15 14 Storage 11 | . 11 14 Energy Gun 12 | . 12 14 Ballistic Gun 1 | . 1 . Launcher 3 | . 3 . Impact Weapon 9 | . 9 14 Naked Turns . | . . . Heaviest Build 21 | 9 21 17 Greatest Support 40 | 40 20 20 Greatest Overweight (x) 2 | 2 1 . Average Overweight (x) . | . . . Largest Inventory Capacity 25 | 5 25 10 Average Capacity 8 | 5 9 10 Most Carried 9 | 5 9 8 Average Carried 6 | 1 7 8 Final Capacity 10 | 5 10 10 Final Carried 8 | 5 8 8 Class Distribution -------------------- 65% | Mutant 34% | Scavenger-Mutant Dominant Class ---------------- Mutant | -10/Materials Scavenger-Mutant | -10/Mines Resources | -11 -10 -10 ----------- Run | Jun Mat Min Matter Collected 459 | 324 135 . Remotely . | . . . Salvage Created 693 | 138 555 . Parts 28 | 7 21 . Haulers Intercepted 1 | . 1 . Recyclers Shooed . | . . . Parts Field Recycled . | . . . Retrieved Matter . | . . . Parts Self-Destructed . | . . . Prevented . | . . . Kills | -11 -10 -10 ------- Run | Jun Mat Min Combat Hostiles Destroyed 13 | . 13 . Melee 4 | . 4 . Guns 1 | . 1 . AOE 5 | . 5 . Classes Destroyed 7 | 2 5 . Builder 1 | . 1 . Tunneler 2 | 2 . . Hauler 1 | . 1 . Recycler 2 | 1 1 . Watcher 1 | . 1 . Swarmer 3 | . 3 . Grunt 10 | . 10 . Best Kill Streak 8 | 2 8 . Combat Bots Only 5 | . 5 . Max Kills in Single Turn 2 | 1 2 . Gunslinging . | . . . Exploded 2 | . 2 . Melee 1 | . 1 . Uniques/NPCs Destroyed . | . . . Combat | -11 -10 -10 -------- Run | Jun Mat Min Damage Taken 641 | . 458 183 Core 282 | . 196 86 Absorbed by Shields . | . . . Core Remaining (%) 100 | 100 . . Volleys Fired 19 | 7 12 . Largest 2 | 2 2 . Hottest 70 | 40 70 . Shots Fired 32 | 14 18 . Gun 26 | 14 12 . Cannon . | . . . Launcher 6 | . 6 . Special . | . . . Kinetic 14 | 14 . . Thermal 1 | . 1 . Explosive 6 | . 6 . Electromagnetic 11 | . 11 . Robot Hit Streak 9 | 5 9 . Robot Miss Streak 2 | 2 1 . Penetration Max . | . . . Secondary Targets . | . . . Shots Hit Robots 42 | 8 34 . Core Hits 22 | 5 17 . Critical Kills 1 | 1 . . Critical Parts Destroyed 2 | . 2 . Critical Strikes 3 | 1 2 . Destroy 1 | 1 . . Smash 2 | . 2 . Melee Attacks 29 | . 27 2 Impact 29 | . 27 2 Slashing . | . . . Piercing . | . . . Sneak Attacks . | . . . Combat Hostiles . | . . . Follow-up Attacks . | . . . Damage Inflicted 1191 | 62 1129 . Guns 178 | 62 116 . Cannons . | . . . Explosions 397 | . 397 . Melee 616 | . 616 . Ramming . | . . . Kinetic 62 | 62 . . Thermal 169 | . 169 . Explosive 239 | . 239 . Electromagnetic 105 | . 105 . Impact 616 | . 616 . Slashing . | . . . Piercing . | . . . Highest Corruption . | . . . Average Corruption . | . . . Corruption Purged . | . . . Corruption Blocked . | . . . Overload Shots . | . . . Overflow Damage 76 | . 76 . Projectiles . | . . . Explosions . | . . . Melee 76 | . 76 . Knockbacks . | . . . Impact . | . . . Kinetic . | . . . Secondary . | . . . Self-Inflicted Damage 27 | . 27 . Shots 1 | . 1 . Rammed . | . . . Targets Rammed . | . . . Kicked . | . . . Crushed . | . . . Highest Temperature 85 | . 85 . Average Temperature 39 | . 39 . Received Heat Transfer 216 | . 216 . Siege Activations . | . . . Robots Corrupted . | . . . Combat Hostiles . | . . . Parts Fried 7 | . 7 . Impact Corruptions 6 | . 6 . Robots Melted . | . . . Combat Hostiles . | . . . Parts Melted . | . . . Heat Transferred 125 | . 125 . Parts Sabotaged . | . . . Parts Stolen . | . . . Parts Stripped . | . . . Power Chain Reactions . | . . . Missiles Intercepted . | . . . Alert | -11 -10 -10 ------- Run | Jun Mat Min Peak Influence 420 | 15 420 111 Initial 111 | . 9 111 Average 201 | 8 255 109 Maximum Alert Level 2 | . 2 . Low Security (%) 36 | 100 17 100 Level 1 54 | . 71 . Level 2 8 | . 11 . Level 3 . | . . . Level 4 . | . . . Level 5 . | . . . High Security . | . . . Max Security . | . . . Squads Dispatched 3 | . 3 . Investigation 2 | . 2 . Extermination . | . . . Reinforcement 1 | . 1 . Assault . | . . . Garrison . | . . . Intercept . | . . . Searches Triggered . | . . . Construction Impeded . | . . . Haulers Reinforced . | . . . Active Scanning Responses . | . . . Cargo Convoy Interrupts . | . . . Stealth | -11 -10 -10 --------- Run | Jun Mat Min Distress Signals 2 | . 2 . Communications Jammed . | . . . Distress Signals . | . . . Times Spotted 22 | . 20 2 Peak Tracking Total 6 | . 6 2 Tactical Retreats 2 | . 2 . Traps | -11 -10 -10 ------- Run | Jun Mat Min Traps Triggered 1 | . 1 . Indirectly . | . . . Trap Hack Attempts . | . . . Triggered . | . . . Disarmed . | . . . Reprogrammed . | . . . Reused . | . . . Traps Extracted . | . . . Installed . | . . . Triggered . | . . . Machines | -11 -10 -10 ---------- Run | Jun Mat Min Machines Disabled 3 | . 3 . Max in Single Turn 3 | . 3 . Machines Repaired . | . . . Machines Sabotaged . | . . . Overloaded Fab Kills . | . . . Hacking | -11 -10 -10 --------- Run | Jun Mat Min Machines Accessed 3 | . 3 . Terminals 2 | . 2 . Fabricators . | . . . Repair Stations . | . . . Recycling Units 1 | . 1 . Scanalyzers . | . . . Garrison Access . | . . . Total Hacks 4 | . 4 . Successful 3 | . 3 . Failed 1 | . 1 . Catastrophic 1 | . 1 . Database Lockouts . | . . . Manual 4 | . 4 . Terminals 3 | . 3 . Fabricators . | . . . Repair Stations . | . . . Recycling Units 1 | . 1 . Scanalyzers . | . . . Garrison Access . | . . . Terminal Hacks . | . . . Fabricator Hacks . | . . . Repair Station Hacks . | . . . Recycling Unit Hacks . | . . . Scanalyzer . | . . . Garrison Access Hacks . | . . . Unauthorized Hacks 3 | . 3 . Terminals 2 | . 2 . Detonate 2 | . 2 . Fabricators . | . . . Repair Stations . | . . . Recycling Units 1 | . 1 . Monitor 1 | . 1 . Scanalyzers . | . . . Garrison Access . | . . . Data Cores Recovered . | . . . Used . | . . . Hacking Detections 2 | . 2 . Full Trace Events 1 | . 1 . Feedback Events . | . . . Feedback Blocked . | . . . Robot Schematics Acquired . | . . . Robots Built . | . . . Authchips . | . . . Time . | . . . Total Robot Build Rating . | . . . Part Schematics Acquired . | . . . Parts Built . | . . . Authchips . | . . . Time . | . . . Total Part Build Rating . | . . . Parts Repaired . | . . . Time . | . . . Parts Recycled . | . . . Recycled Matter . | . . . Retrieved Matter . | . . . Retrieved Components . | . . . Parts Scanalyzed . | . . . Part Schematics Acquired . | . . . Parts Damaged . | . . . Bothacking | -11 -10 -10 ------------ Run | Jun Mat Min Used RIF Installer . | . . . Robots Hacked . | . . . Non-combat . | . . . Combat . | . . . Robot Hacks Applied . | . . . Relay Couplers Released . | . . . Fabnet Peak Effective % . | . . . Robots Rewired . | . . . Allies Hacked . | . . . Hacks Repelled . | . . . Allies | -11 -10 -10 -------- Run | Jun Mat Min Total Allies 2 | . . 2 Largest Group 2 | . . 2 Highest-Rated Group 52 | . . 52 Highest-Rated Ally 31 | . . 31 Total Orders . | . . . Ally Attacks 4 | . . 4 Total Damage 20 | . . 20 Kills 1 | . . 1 Allies Corrupted . | . . . Allies Melted . | . . . Intel | -11 -10 -10 ------- Run | Jun Mat Min Robot Analysis Total . | . . . Derelict Logs Recovered . | . . . Drone Launches . | . . . Drone Recoveries . | . . . Exploration | -11 -10 -10 ------------- Run | Jun Mat Min Turns Passed 756 | 155 582 19 Spaces Moved 583 | 101 464 18 Core 22 | 22 . . Treads 46 | 46 . . Legs . | . . . Wheels 515 | 33 464 18 Hover . | . . . Flight . | . . . Fastest Speed 50 | 50 80 80 Average Speed 87 | 113 81 80 Slowest Speed 160 | 160 95 80 Overloaded Moves . | . . . Propulsion Burnouts . | . . . Robots Hopped . | . . . Cave-ins Triggered . | . . . Exploration Rate (%) 22 | 5 55 6 Regions Visited 2 Branch Regions 1 Pre-discovered Areas . | . . . Known Exits Taken . | . . . Unknown Exits Taken 2 | 1 1 . Scrap Searched . | . . . Spaces Dug . | . . . Terrain Destroyed 53 | . 53 . Melee . | . . . Projectile . | . . . AOE 53 | . 53 . Terrain Rammed . | . . . Walls Destroyed . | . . . Machines Disabled . | . . . Actions | -11 -10 -10 --------- Run | Jun Mat Min Total 746 | 126 600 20 Wait 77 | 1 76 . Move 581 | 100 463 18 Hop . | . . . Pick Up 12 | 5 7 . Fast Attach 11 | 7 4 . Attach 5 | 2 3 . Detach 1 | . 1 . Swap 4 | 2 2 . Drop 7 | 2 5 . Fire 19 | 7 12 . Melee 29 | . 27 2 Ram . | . . . Kick . | . . . Crush . | . . . Escape Stasis . | . . . Rewire . | . . . Trap . | . . . Miscellaneous . | . . . Route ------- -11/Junkyard -10/Materials (discovered 2 exits: [*Mat] / [*Min]) -10/Mines History --------- Turn | Location | Event 5 | -11/Junkyard | Discovered new exit (range 14) 156 | -11/Junkyard | Entered Materials 304 | -10/Materials | Build established: Mutant 498 | -10/Materials | Core integrity fell below 50% 629 | -10/Materials | Discovered new exit (range 15) 690 | -10/Materials | Discovered new exit (range 6) 738 | -10/Materials | Entered Mines 739 | -10/Mines | Assembled infested the area 744 | -10/Mines | Assisted by a Guerilla fighting off Assembled 755 | -10/Mines | Core integrity fell below 20% 757 | -10/Mines | Destroyed by D-53 Grenadier with Mini Grenade Launcher Last Messages --------------- 00639_ Acquired Lrg. Storage Unit. 00640_ >> MONITOR: Recycling Unit M002 accepting Aluminum Leg (16%). 00641_ Acquired Lrg. Storage Unit. 00643_ >> MONITOR: Recycling Unit M002 accepting Sml. Storage Unit (100%). 00646_ >> MONITOR: Recycling Unit M002 accepting Aluminum Leg (65%). 00649_ >> MONITOR: Recycling Unit M002 accepting Ion Engine (80%). 00690_ EXIT=FOUND 00718_ U-05 Engineer lays Concrete. 00728_ R-06 Scavenger collects Huge Storage Unit. LOCATION=UNKNOWN GOAL=ESCAPE Something is scanning the area. 00739_ ALERT: Infestation in the mines, dispatching Demolisher response squad. 00739_ A pair of derelicts emerge from the shadows: "We're, um, lost. You wouldn't happen to know the way out of here, would you?" 00744_ A derelict emerges from the shadows: "You need to get out of here! I've been tracking a group of Assembled to figure out where they're coming from, and they're closing on this area, come on!" 00753_ C-30 ARC bursts open, deploying its payload. 00753_ D-53 Grenadier unfolds itself. 00755_ Wheel destroyed. Map ----- +----------------------------------------------------+ | ????????????????????????????????????????? | | ????????????????????????????????????????? | | ????????????????????????????????????????? | | ????????????????????????????????????????? | | ????????????????????????????????????????? | | ????????????????????????????????????????? | | ????????????????????????????????????????? | | ????????????????????????????????????????? | | ????????????????????????????????????????? | | ????????????????????????????????????????? | | ????????????????????????? ??????????????? | | ????????????????????????????????????????? | | ????????????????????????????????????????? | | ??????????????####??????????????????????? | | ???????? ###### ##??#???????????#??????? | | ????????? #####?????????????????? | | ???????????? ##????????????????? | | ?????????????## #????????????????? | | ????????????## #####????????????? | | ????????????# ## #????????????? | | ???????# ### # ##???????????? | | ???????# ### ##?# # ##??????#???? | | ???????????## ##??# # #??????????? | | ????????????###????# #??????????? | | ??????????????????## #??????????? | | ???????????????????### @ #??????????? | | ?????? ??????????????# dd #?????????? | | ????????????????????# % #?????????? | | ????????????????????## ##?????????? | | ?????????????????????### $ ?????????? | | ???????????????????????####### #????????? | | ?????????????????????????????? #????????? | | ???????????#??????????????????? ????????? | | ???????????????????????????????? ???????? | | ????????????#???????#???????????? ??????? | | ?????????????????????#????????????k?????? | | ????????????????????????#?????????? ????? | | ????????????????????????????????????????? | | ????????????????????????????????????????? | | ?????????????????????????#??????????????? | | ????????????????????????????????????????? | | ????????????????????????????????????????? | | ????????????????????????????????????????? | | ????????????????????????????????????????? | | ????????????????????????????????????????? | | ????????????????????????????????????????? | | ????????????????????????????????????????? | | ????????????????????????????????????????? | | ????????????????????????????????????????? | | ????????????????????????????????????????? | +----------------------------------------------------+ Best States ------------- Heat Dissipation 25 Energy Generation 10 Energy Capacity 250 Matter Stores 300 Matter Capacity 300 Sight Range 16 Terrain Scan Range 16 Terrain Scan Density 10 Evasion (%) 50 Recoil Reduction 2 Item Schematics ----------------- None Robot Schematics ------------------ None Fabricated ------------ Nothing Alien Tech Used ----------------- None Achievements -------------- None Challenges ------------ None Game ------ Seed HardlightVortexSaw Manual? 0 Play Time 00:14:02 Cumulative 189.0 hours Start 2024.02.03 @ 23:13:02 End 2024.02.03 @ 23:32:45 Sessions 1 Manual Loads 0 Difficulty Rogue Special Mode None Game No. 141 Rogue 141 Adventurer 0 Explorer 0 Win Type - Total 0 Types 0/0/0/0/0/0/0/0/0 Lore% 44 Gallery% 57 Achievement% 44 Wizard Run 0 Options --------- ASCII 0 Keyboard 0 Movement Numpad Keybinds 0 Fullscreen 1 Font 16/Smallcaps Map View 112x50 Tactical HUD 1 Map Filters NONE Filters NONE Steam 1 RUN: aa62e92a-5205-4fa2-91b0-1dc2d9d0fa03